bitfinex-derivatives/quotes_ETHF0:USTF0_20251021
["timestamp","ask_amount","ask_price","bid_price","bid_amount"]
[1761062522392,1.31231956,4097.0,4096.3,3.37]
[1761062522594,1.31231956,4097.0,4096.1,5.73276888]
[1761062522595,1.31879837,4097.1,4096.9,3.80924]
[1761062523096,0.00647881,4097.1,4096.9,3.80924]
[1761062523485,0.00962649,4097.1,4096.9,3.81103526]
[1761062524203,0.00962649,4097.1,4096.9,3.81102526]
[1761062527391,3.1945,4097.0,4096.3,3.37]
[1761062527694,3.63375,4096.9,4096.5,3.37]
[1761062527889,1.31231956,4097.0,4096.5,3.37]
[1761062528091,0.00962649,4097.1,4096.7,3.2078]
[1761062528302,3.2078,4096.8,4096.7,3.37]
[1761062528595,0.00962649,4097.1,4097.0,0.43923]
[1761062528804,0.00962649,4097.1,4097.0,3.80923]
[1761062529388,3.63375,4096.9,4096.7,0.00315156]
[1761062529603,3.1945,4096.7,4095.5,6.5778]
[1761062529788,6.4023,4096.0,4095.6,0.43938]
[1761062529993,6.4023,4096.0,4095.5,3.80939]
[1761062529994,0.43936,4095.8,4095.5,3.80939]
[1761062530195,40.8,4095.8,4095.6,0.43938]
[1761062530498,41.23936,4095.8,4095.3,3.37]
[1761062530699,0.43936,4095.8,4095.6,3.80937]
[1761062530896,9.686,4095.9,4095.8,3.37]
[1761062532198,9.686,4095.9,4095.8,6.5778]
[1761062532494,9.68,4096.4,4096.0,3.37]
[1761062532700,9.68,4096.4,4096.3,3.80931]
[1761062532897,9.68,4096.4,4096.3,0.43931]
[1761062533301,9.68,4096.4,4096.3,3.80931]
[1761062533800,9.68,4096.4,4095.9,3.37]
[1761062534001,9.68,4096.4,4095.5,5.95e-06]
[1761062534002,3.1945,4095.6,4095.5,5.95e-06]
[1761062534302,3.1945,4094.2,4092.7,1.09923]
[1761062534497,3.2078,4093.6,4093.3,0.43962]
[1761062534693,0.43963,4093.3,4092.9,0.43967]
[1761062534897,3.2078,4093.6,4092.7,0.6177546]
[1761062535201,3.2078,4093.6,4093.5,0.43961]
[1761062535202,0.0031367,4093.6,4093.5,0.43961]
[1761062535794,3.2109367,4093.6,4093.4,0.43961]
[1761062536002,3.2109367,4093.6,4093.5,0.43961]
[1761062536205,3.2109367,4093.6,4093.5,3.80961]
[1761062536902,6.4054367,4093.6,4093.5,0.43961]
[1761062537096,3.1945,4093.5,4092.9,3.37]
[1761062537296,3.2078,4093.0,4092.9,3.80966]
[1761062537696,3.2078,4093.0,4092.9,8.80966]
[1761062537995,0.0031367,4093.6,4093.5,0.43961]
[1761062538201,0.0031367,4093.6,4093.5,3.80961]
[1761062538401,0.0031367,4093.6,4093.5,0.43961]
[1761062538708,0.0031367,4093.6,4093.5,3.67011]
[1761062539003,3.2929367,4093.6,4093.3,0.43962]
[1761062539204,3.2929367,4093.6,4093.0,3.67016]
[1761062539505,6.4976,4093.1,4092.9,0.43966]
[1761062539705,3.2898,4092.8,4092.7,0.00276736]
[1761062540012,3.72951,4092.5,4091.4,3.2305]
[1761062540194,3.72951,4092.5,4090.0,2.19991]
[1761062540195,0.43978,4091.9,4090.9,3.2305]
[1761062540399,3.2078,4091.7,4091.0,3.2305]
[1761062540595,6.83827,4091.1,4090.6,0.43991]
[1761062540802,3.63052,4090.7,4090.1,3.434]
[1761062541005,3.2078,4090.3,4090.2,3.87396]
[1761062541305,6.3984,4090.3,4090.2,0.43996]
[1761062541506,3.2078,4090.3,4090.2,3.87396]
[1761062541912,16.52036,4090.3,4090.1,0.0021397]
[1761062542206,16.52036,4090.3,4088.9,3.2078]
[1761062542207,12.8898,4090.3,4089.0,1.10022]
[1761062542411,3.1906,4090.2,4090.0,0.43997]
[1761062542702,12.8898,4090.3,4089.5,0.44003]
[1761062542703,3.1906,4089.8,4089.5,0.44003]
[1761062542906,6.3984,4089.6,4089.5,0.44003]
[1761062543117,3.1906,4089.4,4087.7,3.434]
[1761062543302,3.1906,4089.2,4088.1,3.434]
[1761062543606,9.702,4089.4,4088.9,0.44009]
[1761062543909,12.8926,4089.4,4089.3,0.44006]
[1761062544207,9.702,4089.4,4088.7,3.434]
[1761062544407,9.702,4089.4,4089.3,3.87406]
[1761062544602,9.702,4089.4,4089.1,0.44008]
[1761062544902,3.1906,4089.3,4088.8,3.434]
[1761062545102,9.702,4089.4,4089.3,0.44006]
[1761062545310,3.1906,4089.3,4088.5,3.2078]
[1761062545509,3.2078,4088.9,4088.7,0.44011]
[1761062545714,9.705,4089.0,4088.9,3.8741]
[1761062546202,3.2078,4089.9,4089.0,4.6896]
[1761062546403,3.2078,4089.9,4089.8,3.874]
[1761062547405,9.703,4090.5,4090.4,0.43994]
[1761062547604,9.703,4090.5,4089.8,6.6418]
[1761062547809,9.703,4090.5,4090.3,3.87394]
[1761062548411,9.703,4090.5,4090.3,0.43994]
[1761062548805,3.1906,4090.1,4089.3,3.434]
[1761062549002,3.1906,4090.1,4089.3,3.87405]
[1761062549203,0.44006,4089.3,4088.8,3.87411]
[1761062549402,0.44006,4089.3,4088.9,0.44009]
[1761062549403,3.1906,4089.1,4088.9,0.44009]
[1761062549608,3.2078,4089.3,4089.1,0.44007]
[1761062549811,3.2078,4089.3,4089.1,3.87407]
[1761062550106,3.1906,4089.2,4089.0,0.44008]
[1761062550307,3.1906,4089.3,4088.7,3.434]
[1761062550508,3.2078,4089.3,4089.1,0.44007]
[1761062550717,3.2078,4089.3,4088.5,3.434]
[1761062551013,1.10181127,4090.7,4089.8,3.874]
[1761062551014,3.2078,4089.9,4089.8,3.874]
[1761062551213,3.2078,4089.9,4089.3,1.10015]
[1761062551214,9.67902127,4090.7,4090.6,0.43992]
[1761062551511,9.67902127,4090.7,4090.6,3.87664832]
[1761062551716,9.67902127,4090.7,4090.6,0.44264832]
[1761062552010,12.86962127,4090.7,4090.6,0.00272832]
[1761062552213,9.67902127,4090.7,4090.6,0.00272832]
[1761062553414,9.67902127,4090.7,4090.6,3.43672832]
[1761062553918,9.67902127,4090.7,4090.6,0.00272832]
[1761062554112,16.07742127,4090.7,4090.6,0.00272832]
[1761062554515,12.88682127,4090.7,4090.6,3.43672832]
[1761062554810,0.00202127,4090.7,4090.6,3.43672832]
[1761062555010,0.00202127,4090.7,4090.6,0.00272832]
[1761062555318,6.40042127,4090.7,4090.6,0.00272832]
[1761062555516,3.20982127,4090.7,4090.6,3.43672832]
[1761062555907,0.00202127,4090.7,4090.6,3.43672832]
[1761062557816,3.19262127,4090.7,4090.6,0.00272832]
[1761062558320,0.00202127,4090.7,4090.6,3.43672832]
[1761062558919,3.1906,4091.6,4091.3,0.43984]
[1761062559117,3.1906,4091.6,4091.4,0.43983]
[1761062559615,3.1906,4091.5,4091.4,0.43983]
[1761062559816,3.19321297,4091.5,4091.4,0.43983]
[1761062560516,0.00261297,4091.5,4091.4,8.87383]
[1761062560716,3.2078,4092.3,4092.2,3.87375]
[1761062561021,6.3984,4092.3,4092.2,0.43975]
[1761062561418,3.2078,4092.3,4092.2,3.87375]
[1761062561721,3.21052502,4092.3,4092.2,3.87375]
[1761062562625,3.1906,4092.2,4091.2,3.2078]
[1761062562813,3.1906,4092.2,4091.1,3.434]
[1761062562814,3.1906,4091.2,4091.0,0.43987]
[1761062563420,3.63046,4091.2,4091.0,0.43987]
[1761062563723,3.1906,4090.7,4090.6,0.00272832]
[1761062563926,6.3984,4090.7,4090.6,0.00272832]
[1761062564418,3.2078,4090.7,4090.6,0.00272832]
[1761062564620,9.607,4091.0,4090.9,0.43988]
[1761062564820,10.04688,4091.0,4090.7,0.4399]
[1761062565030,0.4399,4090.8,4090.7,0.4399]
[1761062565217,3.1906,4090.8,4090.7,0.4399]
[1761062565424,12.7976,4091.0,4090.9,0.43988]
[1761062565615,9.607,4091.0,4090.9,0.43988]
[1761062566318,9.607,4091.0,4090.9,3.87388]
[1761062566516,0.87125945,4091.7,4091.1,3.434]
[1761062566517,3.2078,4091.7,4091.1,3.434]
[1761062566719,3.2078,4091.7,4091.6,3.87381]
[1761062568822,3.2078,4091.7,4090.9,3.434]
[1761062569124,3.63041,4091.6,4090.9,3.434]
[1761062569329,3.1906,4091.6,4091.4,0.43983]
[1761062569825,3.2078,4091.7,4091.6,0.43981]
[1761062570026,6.3984,4091.7,4091.6,0.43981]
[1761062571219,3.2078,4091.7,4091.6,0.43981]
[1761062571426,3.2078,4091.7,4091.6,3.60521]
[1761062572717,3.2078,4091.7,4090.6,0.00272832]
[1761062572718,3.4179,4091.5,4090.6,0.00272832]
[1761062573016,17.7728,4091.7,4090.7,0.4399]
[1761062573017,3.4179,4090.8,4090.7,0.4399]
[1761062573218,3.4179,4090.8,4090.6,0.00272832]
[1761062573219,3.4179,4091.1,4090.9,0.43988]
[1761062573731,3.2078,4091.2,4090.6,0.00272832]
[1761062573732,3.8578,4090.8,4090.6,0.00272832]
[1761062573932,6.6257,4090.7,4090.6,0.44263832]
[1761062574126,0.87125945,4091.3,4090.6,3.16812832]
[1761062574328,1.3110797,4091.6,4090.6,3.16812832]
[1761062574329,3.4179,4091.4,4091.2,0.43985]
[1761062574529,9.56,4091.7,4091.4,0.43983]
[1761062574731,3.4179,4091.4,4091.3,0.43984]
[1761062575524,3.4179,4091.4,4090.7,3.1654]
[1761062575835,3.4179,4091.4,4091.2,0.43984]
[1761062576132,3.2078,4091.5,4091.4,0.43983]
[1761062576922,6.6257,4091.5,4091.4,0.43983]
[1761062577122,0.43983,4091.4,4091.2,0.43985]
[1761062577426,3.4179,4091.4,4091.3,0.43984]
[1761062578438,3.2078,4091.5,4091.3,3.60524]
[1761062578728,50.36,4091.7,4091.6,0.43981]
[1761062578729,9.56,4091.7,4091.6,0.43981]
[1761062579128,9.56,4091.7,4091.6,3.60521]
[1761062580428,3.2078,4092.0,4091.9,3.60518]
[1761062580628,0.00272502,4092.3,4092.2,3.60515]
[1761062581034,0.00272502,4092.3,4092.2,6.81295]
[1761062581224,4.07905945,4093.1,4093.0,0.43966]
[1761062581533,9.522,4093.2,4093.0,3.60506]
[1761062581734,0.87125945,4093.6,4093.4,3.60502]
[1761062582033,10.38625945,4094.0,4093.8,3.60497]
[1761062582230,9.5174125,4094.0,4093.8,3.60681672]
[1761062582425,0.0024125,4094.0,4093.8,3.60681672]
[1761062582731,4.28915945,4095.0,4094.2,3.1654]
[1761062583033,3.4179,4094.7,4094.0,0.43955]
[1761062583338,0.87125945,4094.6,4094.5,0.4395]
[1761062583534,4.5188797,4094.8,4094.5,3.6049]
[1761062583535,6.6257,4094.8,4094.5,3.6049]
[1761062583735,6.62836989,4094.8,4094.6,0.43948]
[1761062583937,6.62836989,4094.8,4094.5,3.60489]
[1761062584141,6.62836989,4094.8,4094.6,0.43948]
[1761062584337,6.62836989,4094.8,4094.6,3.60488]
[1761062584529,0.00266989,4094.8,4094.6,3.60488]
[1761062585338,0.00266989,4094.8,4094.6,8.60488]
[1761062585641,0.00266989,4094.8,4094.7,3.1654]
[1761062585942,0.00266989,4094.8,4094.7,8.1654]
[1761062586536,0.00266989,4094.8,4094.7,3.1654]
[1761062587133,13.14815,4095.9,4094.7,3.1654]
[1761062587134,12.7088,4095.9,4095.7,3.60477]
[1761062587333,3.2078,4095.9,4095.7,3.60477]
[1761062587534,3.4179,4095.8,4095.7,0.43937]
[1761062587939,3.2078,4095.9,4095.7,3.60477]
[1761062588139,6.62758333,4095.9,4095.7,3.60477]
[1761062588352,3.20968333,4095.9,4095.7,3.60477]
[1761062588750,3.4179,4095.8,4095.4,3.64719]
[1761062589053,4.51652,4095.0,4094.0,0.43955]
[1761062589254,4.51652,4095.0,4093.8,0.44140672]
[1761062589255,4.4639,4094.4,4093.8,0.44140672]
[1761062589455,6.6257,4094.4,4093.8,3.16724672]
[1761062589656,3.8574,4094.5,4094.2,0.43953]
[1761062589858,0.43956,4094.0,4093.8,3.16724672]
[1761062590151,0.43956,4094.0,4093.8,0.00184672]
[1761062590152,3.85745,4094.0,4093.8,0.00184672]
[1761062590556,3.85757,4092.9,4092.6,3.2078]
[1761062590746,3.4179,4092.7,4092.6,3.2078]
[1761062591056,3.2078,4093.1,4092.7,3.1654]
[1761062591258,3.4179,4094.2,4094.1,0.43953]
[1761062591450,3.41990446,4094.2,4094.1,0.00276493]
[1761062592862,3.85745,4094.0,4093.7,0.43958]
[1761062593257,3.2078,4093.8,4092.9,3.2078]
[1761062593460,6.6257,4093.3,4092.5,3.1654]
[1761062593669,6.6257,4093.8,4093.6,0.43959]
[1761062593955,3.4179,4094.0,4093.9,0.43956]
[1761062594152,3.4179,4094.0,4093.1,3.1654]
[1761062594354,3.4179,4094.0,4093.8,0.43957]
[1761062594552,3.4179,4093.9,4093.8,0.43957]
[1761062595261,3.4179,4093.7,4093.6,0.43959]
[1761062595657,3.4179,4093.7,4093.4,0.43961]
[1761062595854,3.4179,4093.6,4093.5,0.4396]
[1761062596353,3.64735,4094.0,4093.8,0.43956]
[1761062596354,3.4179,4093.9,4093.8,0.43956]
[1761062596950,9.50900446,4094.2,4093.4,1.09902]
[1761062596951,0.00200446,4094.2,4094.1,3.60494]
[1761062597160,3.2078,4095.0,4094.1,3.60494]
[1761062597368,3.4179,4095.4,4095.3,0.4394]
[1761062597560,3.2078,4095.5,4095.3,3.6048]
[1761062598156,3.20980885,4095.5,4095.3,3.6048]
[1761062598461,0.00200885,4095.5,4095.3,3.6048]
[1761062598960,3.85719,4096.4,4096.2,0.4393]
[1761062598961,3.4179,4096.4,4096.2,0.4393]
[1761062599365,3.85719,4096.4,4096.2,0.4393]
[1761062599567,3.435,4096.2,4096.0,0.43933]
[1761062599865,3.435,4096.0,4095.8,0.43935]
[1761062600067,3.43808555,4096.0,4095.8,0.44157557]
[1761062600455,0.00308555,4096.0,4095.8,0.44157557]
[1761062600762,0.00308555,4096.0,4095.9,4.7346]
[1761062601255,0.00308555,4096.0,4095.9,5.26215151]
[1761062601457,0.00308555,4096.0,4095.9,3.91295151]
[1761062601657,3.15458555,4096.0,4095.9,0.52755151]
[1761062602159,3.15458555,4096.0,4095.9,3.72835151]
[1761062602160,0.00308555,4096.0,4095.9,3.72835151]
[1761062602763,3.15458555,4096.0,4095.9,0.52755151]
[1761062602966,0.00308555,4096.0,4095.9,3.72835151]
[1761062607466,3.15458555,4096.0,4095.9,0.52755151]
[1761062608066,9.40418555,4096.0,4095.9,0.04720141]
[1761062608466,3.59094,4095.0,4094.9,0.53068536]
[1761062608662,6.79874,4095.0,4094.9,0.53068536]
[1761062608864,3.1515,4094.8,4094.7,0.43947]
[1761062609362,3.1515,4095.2,4095.1,0.43942]
[1761062609565,9.444,4095.3,4095.1,3.64022]
[1761062609862,9.444,4095.3,4094.8,1.09864]
[1761062609863,3.59093,4095.1,4095.0,0.43943]
[1761062610068,3.1515,4094.8,4094.7,0.44193913]
[1761062610270,3.1515,4095.0,4094.8,0.43945]
[1761062610458,4.02283919,4095.7,4095.4,3.2008]
[1761062610660,9.434,4095.8,4095.7,0.43936]
[1761062610865,9.434,4095.8,4095.7,3.64016]
[1761062611462,9.434,4095.8,4095.5,3.2078]
[1761062611463,0.00308555,4096.0,4095.9,3.64014]
[1761062612064,0.00308555,4096.0,4095.9,8.64014]
[1761062613771,3.2078,4096.9,4096.8,3.64004]
[1761062613972,0.00647881,4097.1,4097.0,3.64002]
[1761062614157,0.43915,4097.7,4097.4,3.2008]
[1761062614357,3.2078,4097.6,4096.8,7.7578]
[1761062614558,0.43928,4096.5,4095.9,3.2008]
[1761062614759,3.1515,4096.1,4095.7,3.2008]
[1761062615059,3.2078,4096.5,4096.3,0.43929]
[1761062615259,0.87133919,4097.2,4096.5,3.2008]
[1761062615455,3.1515,4097.3,4096.6,3.2008]
[1761062615668,3.59074,4096.9,4096.6,0.43926]
[1761062615970,3.59074,4096.9,4096.5,3.64007]
[1761062616164,3.1515,4096.7,4096.4,0.43928]
[1761062616362,3.2078,4096.9,4096.1,3.2008]
[1761062616565,3.1515,4096.8,4096.6,0.43926]
[1761062616761,3.1515,4096.8,4096.5,3.2008]
[1761062617063,0.43926,4096.7,4095.9,3.2008]
[1761062617261,3.1515,4096.7,4095.9,3.2008]
[1761062617862,3.2078,4096.9,4096.8,3.64004]
[1761062618165,9.443,4097.0,4096.8,3.64004]
[1761062618361,9.443,4097.0,4096.6,0.43926]
[1761062618565,9.443,4097.0,4096.7,0.43925]
[1761062618566,3.1515,4096.8,4096.7,0.43925]
[1761062618768,3.1515,4096.8,4096.6,0.43926]
[1761062618969,0.43925,4096.7,4096.1,3.2008]
[1761062619167,3.1515,4096.6,4096.5,0.43927]
[1761062619567,3.1515,4096.8,4096.0,3.2078]
[1761062619873,3.1515,4095.8,4095.5,3.64717]
[1761062620167,3.2078,4096.2,4095.4,0.43939]
[1761062620168,3.1515,4095.6,4095.4,0.43939]
[1761062620365,3.1515,4095.6,4095.4,3.64019]
[1761062620556,3.59088,4095.6,4095.4,3.64019]
[1761062620763,3.1515,4096.1,4095.8,0.43935]
[1761062620963,9.442,4096.4,4096.2,3.64011]
[1761062621163,3.59078,4096.5,4096.2,0.4393]
[1761062621365,3.59078,4096.5,4096.3,0.43929]
[1761062621960,4.07913919,4096.7,4096.3,0.43929]
[1761062621961,4.07913919,4096.7,4096.6,0.43926]
[1761062622156,3.2078,4096.7,4096.6,3.64006]
[1761062622561,6.3593,4096.7,4096.5,0.43927]
[1761062622766,3.1515,4096.7,4096.5,0.43927]
[1761062623063,3.1515,4096.9,4096.8,0.43923]
[1761062623270,4.02283919,4096.9,4096.8,0.43923]
[1761062623565,3.1515,4096.8,4096.6,0.43925]
[1761062623770,9.87723,4097.0,4096.9,3.2008]
[1761062623771,10.30933919,4097.0,4096.9,3.2008]
[1761062623962,9.438,4097.0,4096.9,3.2008]
[1761062624165,3.2078,4097.2,4097.1,3.2008]
[1761062624969,3.1515,4097.2,4096.6,3.2008]
[1761062625366,0.87133919,4097.3,4096.9,3.2008]
[1761062625575,0.87133919,4097.5,4097.2,3.2008]
[1761062625768,3.1515,4097.5,4097.0,3.64002]
[1761062625960,0.43921,4097.2,4097.0,3.2008]
[1761062626165,3.59071,4097.1,4096.9,0.43923]
[1761062626365,3.59074,4096.9,4096.5,0.43927]
[1761062626664,3.59074,4096.9,4096.4,3.2078]
[1761062626665,3.1515,4096.8,4096.7,0.43925]
[1761062626865,4.02283919,4096.8,4096.7,0.43925]
[1761062627069,0.43925,4096.7,4096.5,0.43926]
[1761062627268,3.59076,4096.6,4096.4,0.43928]
[1761062627667,0.87460038,4097.0,4096.9,0.43923]
[1761062627969,4.08240038,4097.2,4097.0,0.43921]
[1761062628165,4.08240038,4097.2,4097.0,3.64001]
[1761062629067,3.2078,4097.2,4097.0,3.64001]
[1761062630478,0.87684205,4097.6,4097.4,3.63997]
[1761062630776,0.76097732,4098.2,4097.6,1.288]
[1761062630962,3.2078,4098.8,4098.4,3.3319]
[1761062631166,3.2078,4098.8,4097.6,10.704]
[1761062631167,3.2633,4098.7,4097.9,3.3319]
[1761062631367,3.2633,4098.7,4097.3,3.2078]
[1761062631368,3.2633,4097.4,4096.9,3.3319]
[1761062631566,3.2633,4098.2,4097.2,3.3319]
[1761062631771,0.44093453,4098.2,4097.3,3.3319]
[1761062631976,3.26514453,4098.2,4098.0,0.4391]
[1761062632271,0.00184453,4098.2,4098.0,3.771]
[1761062632776,3.70424453,4098.2,4098.0,3.3319]
[1761062632973,3.2633,4098.1,4097.9,3.77102]
[1761062633272,0.44093453,4098.2,4098.0,3.771]
[1761062633473,3.70423453,4098.2,4098.0,3.771]
[1761062633775,3.70423453,4098.2,4098.0,3.77101]
[1761062633976,3.26514453,4098.2,4098.0,3.77101]
[1761062634378,0.00184453,4098.2,4098.0,3.77101]
[1761062635274,0.00184453,4098.2,4098.1,3.3319]
[1761062636367,3.20964453,4098.2,4098.1,3.3319]
[1761062636575,0.00184453,4098.2,4098.1,3.3319]
[1761062636973,3.26514453,4098.2,4098.0,0.43911]
[1761062637872,0.00184453,4098.2,4098.0,3.77101]
[1761062638475,0.00184453,4098.2,4097.7,4.30564]
[1761062638476,3.2633,4098.1,4097.7,3.3319]
[1761062638678,3.70249,4097.3,4097.2,0.0019789]
[1761062638875,6.91029,4097.3,4097.2,0.0019789]
[1761062639385,11.91029,4097.3,4097.2,0.0019789]
[1761062639883,59.51977,4097.3,4096.2,6.5397]
[1761062640087,59.51977,4097.3,4096.0,3.77122]
[1761062640088,0.43931,4096.2,4096.0,3.77122]
[1761062640276,3.70261,4096.2,4096.0,3.77122]
[1761062640477,3.2633,4097.0,4096.3,3.3319]
[1761062640684,3.2078,4097.2,4096.3,3.3319]
[1761062640685,3.2078,4097.2,4097.1,3.3319]
[1761062640979,3.70423453,4098.2,4097.8,3.77103]
[1761062641182,3.2633,4098.1,4097.3,3.3319]
[1761062641376,3.2633,4097.8,4097.3,3.77108]
[1761062641682,0.00184453,4098.2,4098.1,3.3319]
[1761062642484,0.00184453,4098.2,4097.8,3.2078]
[1761062642485,0.00184453,4098.2,4097.9,3.3319]
[1761062642678,0.00184453,4098.2,4098.1,3.3319]
[1761062643289,0.00184453,4098.2,4097.2,1.09799]
[1761062643290,3.2633,4098.0,4097.7,3.77104]
[1761062643469,3.2633,4098.0,4097.8,0.43913]
[1761062643669,6.4711,4097.9,4097.2,3.3319]
[1761062643877,3.70248,4097.4,4097.2,3.3319]
[1761062644082,0.43914,4097.8,4097.2,3.3319]
[1761062644278,3.2633,4097.7,4097.3,3.77109]
[1761062644492,3.2633,4097.7,4097.5,0.43916]
[1761062644780,0.00184453,4098.2,4098.1,3.3319]
[1761062646385,0.00184453,4098.2,4098.0,3.64691]
[1761062646575,3.2633,4097.8,4097.5,3.2078]
[1761062646776,0.43917,4097.5,4097.2,3.3319]
[1761062646972,3.2633,4097.5,4097.3,0.43918]
[1761062647173,3.2078,4097.6,4097.5,0.43916]
[1761062647381,1.30885332,4098.2,4097.4,3.2078]
[1761062647586,3.70243,4097.9,4097.5,3.3319]
[1761062647891,3.2633,4097.3,4097.1,0.00293031]
[1761062648082,3.2633,4097.2,4096.1,3.87149572]
[1761062648386,3.2633,4097.2,4095.5,3.2078]
[1761062648387,3.2633,4095.9,4095.5,3.2078]
[1761062648578,3.2078,4096.3,4095.5,3.2078]
[1761062648579,3.2078,4096.3,4095.9,0.43933]
[1761062648883,3.2078,4096.3,4096.2,3.7712]
[1761062649082,0.43933,4096.0,4095.5,3.64718]
[1761062649286,0.43933,4096.0,4094.4,2.38673]
[1761062649287,3.2633,4095.1,4094.4,4.6199]
[1761062649584,3.2078,4095.3,4095.2,3.3319]
[1761062649775,3.2078,4095.3,4094.4,0.43949]
[1761062649972,6.4711,4094.6,4094.4,0.51774029]
[1761062650171,3.2633,4094.5,4094.4,0.51774029]
[1761062650383,6.4711,4095.1,4094.4,0.51774029]
[1761062650585,3.2633,4095.0,4094.5,0.43948]
[1761062650880,3.2633,4094.5,4094.1,3.77143]
[1761062651078,3.2633,4094.5,4094.0,0.534291]
[1761062651277,3.2633,4094.5,4094.2,0.43951]
[1761062651472,3.2633,4094.5,4094.4,0.4395]
[1761062651875,3.2633,4094.6,4094.4,0.4395]
[1761062652077,3.2633,4094.0,4093.7,0.43957]
[1761062652275,3.2633,4094.0,4093.8,0.43955]
[1761062652782,3.64734,4094.0,4093.7,0.43957]
[1761062652981,3.2633,4093.9,4093.7,0.43957]
[1761062653183,3.2633,4094.4,4093.7,6.5397]
[1761062653380,3.21043664,4094.5,4093.7,3.77147]
[1761062653586,3.2633,4093.8,4093.5,0.43959]
[1761062653884,3.2633,4093.8,4093.4,0.47004169]
[1761062653885,3.2633,4093.8,4093.6,0.43957]
[1761062654083,1.2558,4094.4,4093.7,3.33421377]
[1761062654285,3.26593664,4094.5,4094.3,0.4395]
[1761062654590,3.70542664,4094.5,4094.0,3.64733]
[1761062654786,3.21043664,4094.5,4093.8,3.3319]
[1761062655087,1.30700879,4095.3,4093.8,3.3319]
[1761062655088,3.2078,4095.5,4095.3,3.77129]
[1761062655478,3.2633,4095.9,4095.3,3.3319]
[1761062655678,3.2633,4095.9,4095.3,0.43939]
[1761062655883,3.2633,4095.9,4095.4,0.43939]
[1761062656084,3.70264,4095.9,4095.2,3.3319]
[1761062656279,3.2633,4095.9,4094.8,3.3319]
[1761062656484,3.2633,4095.9,4095.7,0.43935]
[1761062656691,3.2633,4095.9,4095.4,0.43938]
[1761062656890,3.2633,4095.7,4095.2,0.43941]
[1761062657084,3.2633,4095.7,4095.4,0.43938]
[1761062657391,3.2633,4095.4,4094.5,3.2078]
[1761062657592,0.43953,4094.2,4093.7,0.44188377]
[1761062657782,6.4711,4094.4,4094.3,0.43951]
[1761062657981,6.4711,4094.4,4093.8,3.3319]
[1761062657982,9.398,4094.6,4093.9,3.3319]
[1761062658183,3.2633,4094.2,4094.0,0.43954]
[1761062658484,3.2078,4094.5,4094.3,0.4395]
[1761062658781,3.1196,4094.4,4094.3,0.4395]
[1761062659286,9.398,4094.6,4094.5,0.43949]
[1761062659492,9.398,4094.6,4094.4,3.44769]
[1761062659682,3.2078,4095.0,4094.9,0.43944]
[1761062659885,3.1196,4094.9,4094.4,0.43949]
[1761062660080,3.1196,4094.6,4094.2,0.43951]
[1761062660286,3.1196,4094.6,4094.4,0.43949]
[1761062660892,3.1442,4095.4,4094.8,3.1167]
[1761062661193,3.1442,4095.4,4094.4,4.30654]
[1761062661194,3.5836,4095.4,4094.9,0.43944]
[1761062661395,3.58362,4095.2,4094.9,0.43944]
[1761062661594,12.6178,4095.5,4094.3,3.1167]
[1761062661787,3.1442,4094.8,4093.8,3.2078]
[1761062661983,0.43951,4094.4,4094.1,0.43952]
[1761062662285,3.1442,4094.5,4094.3,0.4395]
[1761062662493,9.41,4094.7,4094.5,0.43948]
[1761062662689,12.5542,4094.7,4094.5,0.43948]
[1761062664494,3.1442,4094.6,4094.5,0.43948]
[1761062664798,3.1442,4094.6,4093.7,0.00231377]
[1761062664799,3.2078,4094.9,4094.8,3.55615]
[1761062664989,6.352,4094.9,4094.8,0.43945]
[1761062665290,3.2078,4094.9,4094.8,3.55615]
[1761062665493,9.404,4095.7,4095.3,3.5561]
[1761062665494,3.2078,4095.4,4095.3,3.5561]
[1761062665792,3.1442,4095.3,4095.1,0.43942]
[1761062665996,3.1442,4095.8,4095.7,0.43936]
[1761062666297,0.00250241,4095.9,4095.7,0.43936]
[1761062666793,3.14670241,4095.9,4095.7,0.43936]
[1761062667788,0.00250241,4095.9,4095.8,3.1167]
[1761062667991,0.00250241,4095.9,4095.8,8.1167]
[1761062668293,3.1442,4096.4,4096.0,3.1167]
[1761062668598,3.1442,4096.4,4096.3,0.43929]
[1761062669095,0.00226347,4096.4,4096.3,0.43929]
[1761062669295,0.00226347,4096.4,4096.3,6.76379]
[1761062669690,3.14646347,4096.4,4096.3,0.43929]
[1761062670292,0.00226347,4096.4,4096.3,3.55599]
[1761062670898,3.14646347,4096.4,4096.2,0.4393]
[1761062671094,3.14646347,4096.4,4096.2,3.556]
[1761062671498,0.00226347,4096.4,4096.2,3.556]
[1761062672197,0.00226347,4096.4,4096.2,0.4393]
[1761062672198,3.1442,4096.3,4096.2,0.4393]
[1761062672386,3.1442,4096.3,4096.1,0.43931]
[1761062673800,0.00226347,4096.4,4096.2,3.1167]
[1761062675093,0.00226347,4096.4,4096.3,0.43929]
[1761062675300,0.00226347,4096.4,4096.3,3.55599]
[1761062675696,0.00226347,4096.4,4096.3,0.43929]
[1761062675697,3.14646347,4096.4,4096.3,0.43929]
[1761062677797,3.14646347,4096.4,4096.3,3.55599]
[1761062678587,3.14646347,4096.4,4096.3,0.43929]
[1761062678786,0.4393,4096.2,4095.8,3.1167]
[1761062678991,0.43934,4096.0,4095.9,0.43933]
[1761062679292,12.5242,4096.3,4095.6,0.4653848]
[1761062679293,3.58357,4095.7,4095.6,0.43936]
[1761062679695,3.1442,4095.7,4095.6,3.55606]
[1761062679895,3.2078,4095.8,4095.6,3.55606]
[1761062680195,3.2078,4095.8,4095.6,4.02622012]
[1761062680397,9.38,4096.3,4095.8,0.43935]
[1761062680596,9.38,4096.3,4096.2,0.4393]
[1761062680785,12.5242,4096.3,4096.2,0.4393]